Workbook

Sheet begroting
E1: uren | H1: pers. kosten | I1: overige kosten | K1: totaal
E2: OASS | F2: JOND | G2: OND | H2: 2014 | I2: 2014
A3: Posten | D3: tarief 2014 | E3: 106 | F3: 129 | G3: 164
A5: Kantoor: update protocollen (veldwerk, databases) | E5: 0 | G5: 0 | H5: =+E5*E$3+F5*F$3+G5*G$3 -> 0
A8: Investeringen (bodemschaaf) | I8: =+Investeringen!E18 -> 144
A11: Veldwerk
A12: voorbereiding | E12: 8 | G12: 1 | H12: =+E12*E$3+F12*F$3+G12*G$3 -> 1012
A13: personeelskosten 'benthos' | E13: =2*5*12 -> 120 | H13: =+E13*E$3+F13*F$3+G13*G$3 -> 12720
A14: reiskosten | H14: =+E14*E$3+F14*F$3+G14*G$3 -> 0 | I14: 300
A15: vaarverslag | E15: 4 | G15: 2 | H15: =+E15*E$3+F15*F$3+G15*G$3 -> 752
A16: opruimen | E16: 4 | H16: =+E16*E$3+F16*F$3+G16*G$3 -> 424 | K16: =SUM(H5:H16) -> 14908
A18: Kantoor: verwerking data t.b.v. rapportage
A19: check invoer HbR 2014 | E19: 8 | H19: =+E19*E$3+F19*F$3+G19*G$3 -> 848
A20: database bodemdieren WOT survey | E20: 8 | G20: 2 | H20: 1176
A21: database bodemdieren HbR 2014 | E21: 24 | G21: 2 | H21: 2872
A22: rapportage | H22: =+E22*E$3+F22*F$3+G22*G$3 -> 0
A23: Projectmanagement | G23: 4 | H23: =+E23*E$3+F23*F$3+G23*G$3 -> 656 | K23: =SUM(H18:I23) -> 5552
A26: subtoaal | B26: fase 1 | H26: =SUM(H5:H17) -> 14908 | I26: =SUM(I5:I17) -> 444 | K26: =SUM(H26:J26) -> 15352
B27: fase 2 | H27: =SUM(H19:H23) -> 5552 | K27: =SUM(H27:J27) -> 5552
A28: totaal | I28: =SUM(H26:I27) -> 20904
H32: =SUM(H26:H27) -> 20460
E36: =SUM(E5:E24) -> 176 | F36: =SUM(F5:F24) -> 0 | G36: =SUM(G5:G24) -> 11

Sheet prestatieverklaring
E1: uren | H1: pers. kosten | I1: overige kosten | J1: totaal | M1: totaal | P1: JohanC | Q1: Jack | R1: JohanJ | S1: Margriet
E2: OASS | F2: JOND | G2: OND | O2: jaar | P2: 2011 | Q2: 2011 | R2: 2011 | S2: 2011
A3: Posten | D3: tarief 2014 | E3: 106 | F3: 129 | G3: 164
A5: Kantoor: update protocollen (veldwerk, databases) | E5: =+Q5+S5+R5 -> 0 | G5: =+P5 -> 0 | H5: =+E5*E$3+F5*F$3+G5*G$3 -> 0
A8: Investeringen (bodemschaaf) | I8: =+Investeringen!E18 -> 144
A11: Veldwerk
A12: voorbereiding | E12: =+Q12+S12+R12 -> 8 | G12: =+P12 -> 1 | H12: =+E12*E$3+F12*F$3+G12*G$3 -> 1012 | P12: 1 | Q12: 8
A13: personeelskosten 'benthos' | E13: =+Q13+S13+R13 -> 110 | G13: =+P13 -> 0 | H13: =+E13*E$3+F13*F$3+G13*G$3 -> 11660 | Q13: 55 | R13: 55
A14: reiskosten | H14: =+E14*E$3+F14*F$3+G14*G$3 -> 0 | I14: 300
A15: vaarverslag | E15: =+Q15+S15+R15 -> 0 | G15: =+P15 -> 1 | H15: =+E15*E$3+F15*F$3+G15*G$3 -> 164 | P15: 1
A16: opruimen | E16: =+Q16+S16+R16 -> 4 | G16: =+P16 -> 0 | H16: =+E16*E$3+F16*F$3+G16*G$3 -> 424 | Q16: 4
M17: subtotaal | P17: =SUM(P5:P16) -> 2 | Q17: =SUM(Q5:Q16) -> 67 | R17: =SUM(R5:R16) -> 55 | S17: 0
A18: Kantoor: verwerking data t.b.v. rapportage
A19: database bodemdieren | E19: =+Q19+R19+S19 -> 15 | G19: =+P19 -> 1 | H19: =+E19*E$3+F19*F$3+G19*G$3 -> 1754 | P19: 1 | Q19: 15
A20: rapportage | E20: =+Q20+R20+S20 -> 0 | G20: =+P20 -> 0 | H20: =+E20*E$3+F20*F$3+G20*G$3 -> 0
A21: Projectmanagement | E21: 0 | G21: 2 | H21: =+E21*E$3+F21*F$3+G21*G$3 -> 328 | P21: 2
M22: subtotaal | P22: =SUM(P19:P21) -> 3 | Q22: =SUM(Q19:Q21) -> 15 | R22: 0 | S22: 0
M25: totaal | P25: =+P22+P17 -> 5 | Q25: =+Q22+Q17 -> 82 | R25: 55 | S25: 0
A29: subtotalen | F29: subtotaal fase 1 | H29: =SUM(H5:H16) -> 13260 | I29: =SUM(I5:I16) -> 444 | J29: =SUM(H29:I29) -> 13704
F30: subtotaal fase 2 | H30: =SUM(H19:H21) -> 2082 | I30: =SUM(I19:I21) -> 0 | J30: =SUM(H30:I30) -> 2082
A31: totaal | F31: totaal | H31: =SUM(H29:H30) -> 15342 | I31: =SUM(I29:I30) -> 444 | J31: 15786

Sheet Investeringen
A1: apparaat | B1: waarde | C1: % tbv project | D1: aantal | E1: investering
A3: bodemschaaf | B3: 12000 | C3: 3 | D3: 2 | E3: =0.2*B3*C3/100*D3 -> 144
A4: altimeter | B4: 2500 | C4: 100 | D4: 0 | E4: =0.2*B4*C4/100*D4 -> 0
A5: aquadopp | B5: 16000 | C5: 100 | D5: 0 | E5: =0.2*B5*C5/100*D5 -> 0
A6: temp.sal. Meter | B6: 3000 | C6: 100 | D6: 0 | E6: =0.2*B6*C6/100*D6 -> 0
A7: DGPS | B7: 1670 | C7: 50 | D7: 0 | E7: =0.2*B7*C7/100*D7 -> 0
A8: 207270 Reo+upgrade Altime | B8: 1265 | C8: 50 | D8: 0 | E8: =0.2*B8*C8/100*D8 -> 0
A9: 200930 Onderwaterbehuizing | B9: 2685 | C9: 50 | D9: 0 | E9: 0
A10: 94300640 Campbell | B10: 3374 | C10: 50 | D10: 0 | E10: 0
A11: 94300640 Loggernet | B11: 701 | C11: 50 | D11: 0 | E11: 0
A12: 94300640 PC400 datalogger | B12: 369 | C12: 50 | D12: 0 | E12: 0
A13: 205512 EV Surf GPS post-p | B13: 2200 | C13: 50 | D13: 0 | E13: 0
E18: =SUM(E3:E13) -> 144

Sheet Materiaal
